[Event "Rapid Tournament"]
[Site "Biel, Switzerland"]
[Date "2021.07.25"]
[Round "2.2"]
[White "Gelfand, Boris"]
[Black "Nihal, Sarin"]
[Result "0-1"]
[TimeControl "15min + 5 sec per move"]
[WhiteTitle "GM"]
[BlackTitle "GM"]
[WhiteFideId "2805677"]
[BlackFideId "25092340"]
[WhiteElo "2702"]
[BlackElo "2418"]

1. Nf3 {[%clk 00:15:09]} d5 {[%clk 00:15:07]} {[%emt 00:00:03]} 2. d4 {[%clk
00:15:13]} {[%emt 00:00:01]} Nf6 {[%clk 00:15:08]} {[%emt 00:00:04]} 3. c4
{[%clk 00:15:17]} {[%emt 00:00:01]} e6 {[%clk 00:15:12]} {[%emt 00:00:01]} 4.
g3 {[%clk 00:15:21]} Be7 {[%clk 00:15:15]} {[%emt 00:00:01]} 5. Bg2 {[%clk
00:15:25]} O-O {[%clk 00:15:19]} {[%emt 00:00:02]} 6. O-O {[%clk 00:15:29]}
{[%emt 00:00:01]} dxc4 {[%clk 00:15:22]} {[%emt 00:00:01]} 7. Qc2 {[%clk
00:15:33]} {[%emt 00:00:01]} b5 {[%clk 00:15:26]} 8. a4 {[%clk 00:15:36]}
{[%emt 00:00:02]} b4 {[%clk 00:15:30]} 9. Ne5 {[%clk 00:15:33]} {[%emt
00:00:08]} Qxd4 {[%clk 00:15:29]} {[%emt 00:00:06]} 10. Bxa8 {[%clk 00:15:15]}
{[%emt 00:00:24]} Qxe5 {[%clk 00:15:32]} {[%emt 00:00:02]} 11. Bf4 {[%clk
00:13:55]} {[%emt 00:01:25]} Qh5 {[%clk 00:15:32]} {[%emt 00:00:04]} 12. Bf3
{[%clk 00:12:04]} {[%emt 00:01:57]} Ng4 {[%clk 00:15:32]} {[%emt 00:00:05]} 13.
Bxg4 {[%clk 00:12:07]} {[%emt 00:00:02]} Qxg4 {[%clk 00:15:36]} {[%emt
00:00:01]} 14. Nd2 {[%clk 00:11:51]} {[%emt 00:00:21]} e5 {[%clk 00:11:29]}
{[%emt 00:04:12]} 15. Bxe5 {[%clk 00:11:19]} {[%emt 00:00:37]} Nc6 {[%clk
00:09:48]} {[%emt 00:01:46]} 16. Nxc4 {[%clk 00:08:21]} {[%emt 00:03:03]} Qe6
{[%clk 00:09:11]} {[%emt 00:00:41]} 17. Bxg7 {[%clk 00:05:42]} {[%emt
00:02:44]} Kxg7 {[%clk 00:09:10]} {[%emt 00:00:06]} 18. Rfd1 {[%clk 00:05:47]}
Bf6 {[%clk 00:08:12]} {[%emt 00:01:03]} 19. e3 {[%clk 00:05:47]} {[%emt
00:00:04]} Ne5 {[%clk 00:07:29]} {[%emt 00:00:48]} 20. Nxe5 {[%clk 00:05:33]}
{[%emt 00:00:20]} Qxe5 {[%clk 00:07:12]} {[%emt 00:00:22]} 21. Rac1 {[%clk
00:05:06]} {[%emt 00:00:31]} Qxb2 {[%clk 00:05:43]} {[%emt 00:01:34]} 22. Qxc7
{[%clk 00:04:11]} {[%emt 00:01:00]} Bg4 {[%clk 00:04:54]} {[%emt 00:00:54]} 23.
Rb1 {[%clk 00:04:08]} {[%emt 00:00:08]} Qa2 {[%clk 00:03:44]} {[%emt 00:01:15]}
24. Rf1 {[%clk 00:03:33]} {[%emt 00:00:41]} Bh3 {[%clk 00:01:25]} {[%emt
00:02:23]} 25. Rxb4 {[%clk 00:02:50]} {[%emt 00:00:48]} Qe2 {[%clk 00:00:54]}
{[%emt 00:00:36]} 26. Rbb1 {[%clk 00:02:19]} {[%emt 00:00:36]} Rc8 {[%clk
00:00:36]} {[%emt 00:00:22]} 27. Qb7 {[%clk 00:01:36]} {[%emt 00:00:48]} Rc2
{[%clk 00:00:40]} {[%emt 00:00:01]} 28. a5 {[%clk 00:01:07]} {[%emt 00:00:34]}
a6 {[%clk 00:00:35]} {[%emt 00:00:10]} 29. Qe4 {[%clk 00:00:39]} {[%emt
00:00:32]} Bxf1 {[%clk 00:00:10]} {[%emt 00:00:31]} 30. Rxf1 {[%clk 00:00:43]}
Ra2 {[%clk 00:00:08]} {[%emt 00:00:06]} 31. Qf5 {[%clk 00:00:38]} {[%emt
00:00:10]} h6 {[%clk 00:00:07]} {[%emt 00:00:07]} 32. Rc1 {[%clk 00:00:30]}
{[%emt 00:00:13]} Qb5 {[%clk 00:00:07]} {[%emt 00:00:05]} 33. Qg4+ {[%clk
00:00:26]} {[%emt 00:00:08]} Qg5 {[%clk 00:00:09]} {[%emt 00:00:03]} 34. Qf3
{[%clk 00:00:28]} {[%emt 00:00:03]} Rxa5 {[%clk 00:00:09]} {[%emt 00:00:06]} 35.
Rc4 {[%clk 00:00:27]} {[%emt 00:00:06]} Qd5 {[%clk 00:00:07]} {[%emt 00:00:07]}
36. Rg4+ {[%clk 00:00:28]} {[%emt 00:00:04]} Kf8 {[%clk 00:00:07]} {[%emt
00:00:06]} 37. Re4 {[%clk 00:00:10]} {[%emt 00:00:22]} Kg7 {[%clk 00:00:06]}
{[%emt 00:00:05]} 38. Rg4+ {[%clk 00:00:14]} {[%emt 00:00:01]} Kf8 {[%clk
00:00:11]} 39. Re4 {[%clk 00:00:18]} Qd6 {[%clk 00:00:07]} {[%emt 00:00:09]} 40.
Rf4 {[%clk 00:00:20]} {[%emt 00:00:04]} Kg7 {[%clk 00:00:10]} {[%emt 00:00:02]}
41. Rg4+ {[%clk 00:00:24]} Rg5 {[%clk 00:00:13]} {[%emt 00:00:02]} 42. h4
{[%clk 00:00:24]} {[%emt 00:00:06]} Rxg4 {[%clk 00:00:10]} {[%emt 00:00:09]} 43.
Qxg4+ {[%clk 00:00:28]} {[%emt 00:00:01]} Kf8 {[%clk 00:00:14]} 44. Qc8+ {[%clk
00:00:31]} Kg7 {[%clk 00:00:18]} 45. Qg4+ {[%clk 00:00:35]} {[%emt 00:00:01]}
Kf8 {[%clk 00:00:22]} {[%emt 00:00:01]} 46. Qc8+ {[%clk 00:00:39]} {[%emt
00:00:01]} Bd8 {[%clk 00:00:26]} 47. e4 {[%clk 00:00:29]} {[%emt 00:00:15]} a5
{[%clk 00:00:25]} {[%emt 00:00:06]} 48. e5 {[%clk 00:00:33]} Qd1+ {[%clk
00:00:24]} {[%emt 00:00:05]} 49. Kh2 {[%clk 00:00:36]} {[%emt 00:00:02]} Qd5
{[%clk 00:00:27]} {[%emt 00:00:02]} 50. f4 {[%clk 00:00:31]} {[%emt 00:00:11]}
a4 {[%clk 00:00:19]} {[%emt 00:00:13]} 51. Qa6 {[%clk 00:00:35]} Qd2+ {[%clk
00:00:13]} {[%emt 00:00:11]} 52. Kh3 {[%clk 00:00:38]} {[%emt 00:00:01]} Qd7+
{[%clk 00:00:17]} {[%emt 00:00:01]} 53. Kh2 {[%clk 00:00:40]} {[%emt 00:00:04]}
Kg7 {[%clk 00:00:17]} {[%emt 00:00:05]} 54. f5 {[%clk 00:00:30]} {[%emt
00:00:15]} Qxf5 {[%clk 00:00:17]} {[%emt 00:00:05]} 55. Qxa4 {[%clk 00:00:34]}
Qxe5 {[%clk 00:00:20]} {[%emt 00:00:02]} 56. Qg4+ {[%clk 00:00:37]} {[%emt
00:00:01]} Kf8 {[%clk 00:00:21]} {[%emt 00:00:04]} 57. Qc8 {[%clk 00:00:40]}
{[%emt 00:00:02]} Qe2+ {[%clk 00:00:14]} {[%emt 00:00:12]} 58. Kh1 {[%clk
00:00:43]} {[%emt 00:00:03]} Qd1+ {[%clk 00:00:13]} {[%emt 00:00:05]} 59. Kg2
{[%clk 00:00:46]} {[%emt 00:00:02]} Qd5+ {[%clk 00:00:17]} {[%emt 00:00:02]} 60.
Kh2 {[%clk 00:00:48]} {[%emt 00:00:03]} h5 {[%clk 00:00:15]} {[%emt 00:00:06]}
61. Qc3 {[%clk 00:00:49]} {[%emt 00:00:04]} Kg8 {[%clk 00:00:17]} {[%emt
00:00:03]} 62. Qe3 {[%clk 00:00:50]} {[%emt 00:00:04]} Kg7 {[%clk 00:00:18]}
{[%emt 00:00:04]} 63. Qc3+ {[%clk 00:00:54]} {[%emt 00:00:01]} Bf6 {[%clk
00:00:22]} {[%emt 00:00:02]} 64. Qe3 {[%clk 00:00:57]} {[%emt 00:00:01]} Qa2+
{[%clk 00:00:20]} {[%emt 00:00:07]} 65. Kh1 {[%clk 00:00:59]} {[%emt 00:00:04]}
Qa1+ {[%clk 00:00:19]} {[%emt 00:00:05]} 66. Kg2 {[%clk 00:01:02]} {[%emt
00:00:01]} Qb2+ {[%clk 00:00:23]} {[%emt 00:00:02]} 67. Kh1 {[%clk 00:01:06]}
Qd4 {[%clk 00:00:18]} {[%emt 00:00:10]} 68. Qf3 {[%clk 00:00:48]} {[%emt
00:00:24]} Qg4 {[%clk 00:00:21]} {[%emt 00:00:01]} 69. Qe3 {[%clk 00:00:50]}
Bd4 {[%clk 00:00:23]} {[%emt 00:00:06]} 0-1

[Event "Rapid Tournament"]
[Site "Biel, Switzerland"]
[Date "2021.07.25"]
[Round "2.3"]
[White "Alekseenko, Kirill"]
[Black "Keymer, Vincent"]
[Result "1-0"]
[TimeControl "15min + 5 sec per move"]
[WhiteTitle "GM"]
[BlackTitle "GM"]
[WhiteFideId "4135539"]
[BlackFideId "12940690"]
[WhiteElo "2661"]
[BlackElo "2543"]

1. e4 {[%clk 00:15:09]} c6 {[%clk 00:15:10]} {[%emt 00:00:01]} 2. d4 {[%clk
00:14:57]} {[%emt 00:00:16]} d5 {[%clk 00:15:14]} 3. e5 {[%clk 00:15:01]}
{[%emt 00:00:01]} Bf5 {[%clk 00:15:18]} 4. Nd2 {[%clk 00:15:05]} {[%emt
00:00:01]} e6 {[%clk 00:15:21]} {[%emt 00:00:02]} 5. Nb3 {[%clk 00:15:07]}
{[%emt 00:00:02]} Nd7 {[%clk 00:15:25]} 6. Nf3 {[%clk 00:15:08]} {[%emt
00:00:04]} Qc7 {[%clk 00:15:29]} {[%emt 00:00:01]} 7. Be2 {[%clk 00:15:04]}
{[%emt 00:00:08]} c5 {[%clk 00:15:24]} {[%emt 00:00:11]} 8. c3 {[%clk
00:14:26]} {[%emt 00:00:43]} h6 {[%clk 00:15:07]} {[%emt 00:00:23]} 9. Be3
{[%clk 00:14:24]} {[%emt 00:00:07]} c4 {[%clk 00:14:33]} {[%emt 00:00:39]} 10.
Nbd2 {[%clk 00:14:20]} {[%emt 00:00:08]} b5 {[%clk 00:14:34]} {[%emt 00:00:04]}
11. O-O {[%clk 00:13:45]} {[%emt 00:00:39]} Bh7 {[%clk 00:10:33]} {[%emt
00:04:07]} 12. g3 {[%clk 00:13:28]} {[%emt 00:00:22]} Ne7 {[%clk 00:10:20]}
{[%emt 00:00:18]} 13. Nh4 {[%clk 00:12:02]} {[%emt 00:01:30]} Nf5 {[%clk
00:04:55]} {[%emt 00:05:31]} 14. Nxf5 {[%clk 00:11:33]} {[%emt 00:00:34]} Bxf5
{[%clk 00:04:58]} {[%emt 00:00:01]} 15. g4 {[%clk 00:11:19]} {[%emt 00:00:19]}
Bh7 {[%clk 00:04:43]} {[%emt 00:00:21]} 16. f4 {[%clk 00:11:10]} {[%emt
00:00:13]} Nb6 {[%clk 00:04:47]} {[%emt 00:00:02]} 17. b3 {[%clk 00:10:24]}
{[%emt 00:00:51]} Ba3 {[%clk 00:03:48]} {[%emt 00:01:04]} 18. bxc4 {[%clk
00:10:27]} {[%emt 00:00:02]} bxc4 {[%clk 00:03:41]} {[%emt 00:00:12]} 19. f5
{[%clk 00:10:27]} {[%emt 00:00:05]} Bb2 {[%clk 00:03:19]} {[%emt 00:00:28]} 20.
Rb1 {[%clk 00:10:31]} Bxc3 {[%clk 00:03:22]} {[%emt 00:00:01]} 21. Qc1 {[%clk
00:09:37]} {[%emt 00:00:58]} Bxd2 {[%clk 00:03:17]} {[%emt 00:00:11]} 22. Bxd2
{[%clk 00:08:59]} {[%emt 00:00:42]} Qd7 {[%clk 00:03:00]} {[%emt 00:00:22]} 23.
Qa3 {[%clk 00:08:03]} {[%emt 00:01:01]} Nc8 {[%clk 00:01:41]} {[%emt 00:01:24]}
24. Bd1 {[%clk 00:07:33]} {[%emt 00:00:35]} Qe7 {[%clk 00:00:13]} {[%emt
00:01:33]} 25. Ba4+ {[%clk 00:07:13]} {[%emt 00:00:25]} Kd8 {[%clk 00:00:17]}
{[%emt 00:00:01]} 26. Bb4 {[%clk 00:07:16]} {[%emt 00:00:02]} Qc7 {[%clk
00:00:15]} {[%emt 00:00:07]} 27. Bd6 {[%clk 00:06:53]} {[%emt 00:00:27]} Nxd6
{[%clk 00:00:07]} {[%emt 00:00:13]} 28. exd6 {[%clk 00:06:57]} {[%emt
00:00:02]} 1-0

[Event "Rapid Tournament"]
[Site "Biel, Switzerland"]
[Date "2021.07.25"]
[Round "2.4"]
[White "Lagarde, Maxime"]
[Black "Kamsky, Gata"]
[Result "0-1"]
[TimeControl "15min + 5 sec per move"]
[WhiteTitle "GM"]
[BlackTitle "GM"]
[WhiteFideId "662399"]
[BlackFideId "2000024"]
[WhiteElo "2684"]
[BlackElo "2701"]

1. e4 {[%clk 00:15:09]} c6 {[%clk 00:14:49]} {[%emt 00:00:21]} 2. d4 {[%clk
00:14:50]} {[%emt 00:00:24]} d5 {[%clk 00:14:52]} {[%emt 00:00:03]} 3. e5
{[%clk 00:14:54]} {[%emt 00:00:02]} Bf5 {[%clk 00:14:39]} {[%emt 00:00:17]} 4.
h4 {[%clk 00:14:57]} {[%emt 00:00:02]} h6 {[%clk 00:14:31]} {[%emt 00:00:12]} 5.
Bd3 {[%clk 00:14:43]} {[%emt 00:00:20]} Bxd3 {[%clk 00:14:33]} {[%emt
00:00:03]} 6. cxd3 {[%clk 00:14:46]} {[%emt 00:00:02]} e6 {[%clk 00:14:35]}
{[%emt 00:00:03]} 7. h5 {[%clk 00:14:46]} {[%emt 00:00:05]} c5 {[%clk
00:13:42]} {[%emt 00:00:58]} 8. dxc5 {[%clk 00:14:23]} {[%emt 00:00:28]} Bxc5
{[%clk 00:13:44]} {[%emt 00:00:03]} 9. Qg4 {[%clk 00:11:45]} {[%emt 00:02:43]}
Ne7 {[%clk 00:12:08]} {[%emt 00:01:41]} 10. d4 {[%clk 00:10:30]} {[%emt
00:01:20]} Bb4+ {[%clk 00:12:09]} {[%emt 00:00:03]} 11. Nc3 {[%clk 00:10:27]}
{[%emt 00:00:08]} Nf5 {[%clk 00:12:07]} {[%emt 00:00:07]} 12. Nge2 {[%clk
00:10:24]} {[%emt 00:00:09]} Nc6 {[%clk 00:12:06]} {[%emt 00:00:06]} 13. Ng3
{[%clk 00:06:01]} {[%emt 00:04:28]} Nfxd4 {[%clk 00:09:38]} {[%emt 00:02:32]}
14. Qxg7 {[%clk 00:05:52]} {[%emt 00:00:14]} Kd7 {[%clk 00:09:41]} {[%emt
00:00:02]} 15. Qxf7+ {[%clk 00:04:51]} {[%emt 00:01:06]} Qe7 {[%clk 00:09:14]}
{[%emt 00:00:32]} 16. Qxe7+ {[%clk 00:04:54]} {[%emt 00:00:02]} Bxe7 {[%clk
00:09:10]} {[%emt 00:00:08]} 17. O-O {[%clk 00:04:46]} {[%emt 00:00:13]} Nxe5
{[%clk 00:08:55]} {[%emt 00:00:20]} 18. f4 {[%clk 00:03:18]} {[%emt 00:01:34]}
Rag8 {[%clk 00:08:52]} {[%emt 00:00:08]} 19. fxe5 {[%clk 00:03:05]} {[%emt
00:00:18]} Rxg3 {[%clk 00:08:54]} {[%emt 00:00:03]} 20. Bf4 {[%clk 00:03:01]}
{[%emt 00:00:10]} Rg4 {[%clk 00:08:51]} {[%emt 00:00:07]} 21. g3 {[%clk
00:02:21]} {[%emt 00:00:46]} Rhg8 {[%clk 00:08:51]} {[%emt 00:00:05]} 22. Kh2
{[%clk 00:02:21]} {[%emt 00:00:05]} Bh4 {[%clk 00:08:23]} {[%emt 00:00:32]} 23.
Rad1 {[%clk 00:01:51]} {[%emt 00:00:37]} Nf5 {[%clk 00:08:20]} {[%emt
00:00:07]} 24. Ne4 {[%clk 00:00:49]} {[%emt 00:01:07]} Ke7 {[%clk 00:07:31]}
{[%emt 00:00:52]} 25. Nd6 {[%clk 00:00:31]} {[%emt 00:00:25]} Nxg3 {[%clk
00:07:08]} {[%emt 00:00:27]} 26. Bg5+ {[%clk 00:00:32]} {[%emt 00:00:05]} Bxg5
{[%clk 00:06:30]} {[%emt 00:00:43]} 27. Rf7+ {[%clk 00:00:35]} {[%emt
00:00:02]} Kd8 {[%clk 00:06:33]} {[%emt 00:00:01]} 28. Rxb7 {[%clk 00:00:08]}
{[%emt 00:00:32]} Nf5 {[%clk 00:05:14]} {[%emt 00:01:24]} 29. Nxf5 {[%clk
00:00:07]} {[%emt 00:00:07]} exf5 {[%clk 00:05:09]} {[%emt 00:00:10]} 30. Rxd5+
{[%clk 00:00:07]} {[%emt 00:00:05]} Kc8 {[%clk 00:05:12]} {[%emt 00:00:01]} 0-1

[ePGN "0.1;DGT LiveChess/2.2.5"]

[Event "Rapid Tournament"]
[Site "Biel, Switzerland"]
[Date "2021.07.25"]
[Round "3.1"]
[White "Studer, Noël"]
[Black "Lagarde, Maxime"]
[Result "1/2-1/2"]
[TimeControl "15min + 5 sec per move"]
[WhiteTitle "GM"]
[BlackTitle "GM"]
[WhiteFideId "1319620"]
[BlackFideId "662399"]
[WhiteElo "2431"]
[BlackElo "2684"]

1. d4 {[%clk 00:15:09]} f5 {[%clk 00:15:08]} {[%emt 00:00:03]} 2. c4 {[%clk
00:15:11]} {[%emt 00:00:03]} Nf6 {[%clk 00:15:11]} {[%emt 00:00:01]} 3. g3
{[%clk 00:15:15]} {[%emt 00:00:01]} g6 {[%clk 00:15:15]} {[%emt 00:00:01]} 4.
Bg2 {[%clk 00:15:19]} Bg7 {[%clk 00:15:19]} 5. Nf3 {[%clk 00:15:23]} {[%emt
00:00:01]} O-O {[%clk 00:15:23]} {[%emt 00:00:02]} 6. O-O {[%clk 00:15:26]}
{[%emt 00:00:02]} d6 {[%clk 00:15:26]} {[%emt 00:00:02]} 7. Nc3 {[%clk
00:15:30]} {[%emt 00:00:01]} Nc6 {[%clk 00:14:58]} {[%emt 00:00:33]} 8. d5
{[%clk 00:15:34]} {[%emt 00:00:01]} Ne5 {[%clk 00:15:02]} 9. Nxe5 {[%clk
00:15:38]} {[%emt 00:00:01]} dxe5 {[%clk 00:15:06]} {[%emt 00:00:01]} 10. Qb3
{[%clk 00:15:39]} {[%emt 00:00:03]} h6 {[%clk 00:15:05]} {[%emt 00:00:06]} 11.
c5 {[%clk 00:15:11]} {[%emt 00:00:32]} Kh8 {[%clk 00:15:09]} {[%emt 00:00:02]}
12. Rd1 {[%clk 00:14:42]} {[%emt 00:00:34]} g5 {[%clk 00:15:02]} {[%emt
00:00:12]} 13. Qa3 {[%clk 00:13:59]} {[%emt 00:00:48]} Qe8 {[%clk 00:11:05]}
{[%emt 00:04:02]} 14. Bd2 {[%clk 00:11:33]} {[%emt 00:02:31]} e4 {[%clk
00:08:47]} {[%emt 00:02:23]} 15. Rac1 {[%clk 00:11:18]} {[%emt 00:00:20]} Qh5
{[%clk 00:07:38]} {[%emt 00:01:13]} 16. c6 {[%clk 00:06:32]} {[%emt 00:04:52]}
bxc6 {[%clk 00:06:46]} {[%emt 00:00:56]} 17. dxc6 {[%clk 00:06:01]} {[%emt
00:00:36]} e5 {[%clk 00:05:58]} {[%emt 00:00:54]} 18. Nb5 {[%clk 00:04:19]}
{[%emt 00:01:47]} f4 {[%clk 00:05:44]} {[%emt 00:00:19]} 19. Bb4 {[%clk
00:04:15]} {[%emt 00:00:10]} Bg4 {[%clk 00:04:28]} {[%emt 00:01:21]} 20. f3
{[%clk 00:03:44]} {[%emt 00:00:36]} fxg3 {[%clk 00:03:56]} {[%emt 00:00:36]} 21.
hxg3 {[%clk 00:03:47]} {[%emt 00:00:02]} exf3 {[%clk 00:03:47]} {[%emt
00:00:14]} 22. exf3 {[%clk 00:03:45]} {[%emt 00:00:07]} e4 {[%clk 00:03:51]} 23.
Rf1 {[%clk 00:01:04]} {[%emt 00:02:46]} exf3 {[%clk 00:02:18]} {[%emt
00:01:38]} 24. Bxf3 {[%clk 00:00:53]} {[%emt 00:00:17]} Bxf3 {[%clk 00:01:45]}
{[%emt 00:00:38]} 25. Qxf3 {[%clk 00:00:58]} Ng4 {[%clk 00:01:47]} {[%emt
00:00:02]} 26. Qh1 {[%clk 00:01:02]} Rxf1+ {[%clk 00:01:12]} {[%emt 00:00:40]}
27. Rxf1 {[%clk 00:01:06]} Qxh1+ {[%clk 00:00:45]} {[%emt 00:00:32]} 28. Kxh1
{[%clk 00:01:10]} {[%emt 00:00:01]} Rb8 {[%clk 00:00:49]} 29. Bc3 {[%clk
00:00:12]} {[%emt 00:01:03]} Rxb5 {[%clk 00:00:46]} {[%emt 00:00:08]} 30. Rf8+
{[%clk 00:00:17]} Kh7 {[%clk 00:00:50]} 31. Rf7 {[%clk 00:00:21]} Ne5 {[%clk
00:00:55]} {[%emt 00:00:02]} 32. Rxc7 {[%clk 00:00:25]} Rc5 {[%clk 00:00:50]}
{[%emt 00:00:09]} 33. Rxa7 {[%clk 00:00:23]} {[%emt 00:00:08]} Kg6 {[%clk
00:00:38]} {[%emt 00:00:16]} 34. c7 {[%clk 00:00:14]} {[%emt 00:00:15]} Bf6
{[%clk 00:00:24]} {[%emt 00:00:19]} 35. Ra5 {[%clk 00:00:15]} {[%emt 00:00:04]}
Rxc7 {[%clk 00:00:17]} {[%emt 00:00:12]} 36. Bxe5 {[%clk 00:00:19]} {[%emt
00:00:01]} Rc1+ {[%clk 00:00:16]} {[%emt 00:00:05]} 37. Kg2 {[%clk 00:00:22]}
{[%emt 00:00:02]} Rc2+ {[%clk 00:00:17]} {[%emt 00:00:04]} 38. Kf3 {[%clk
00:00:19]} {[%emt 00:00:07]} Bxe5 {[%clk 00:00:17]} {[%emt 00:00:05]} 39. Rxe5
{[%clk 00:00:23]} {[%emt 00:00:01]} Rxb2 {[%clk 00:00:21]} 40. Re6+ {[%clk
00:00:28]} Kf5 {[%clk 00:00:14]} {[%emt 00:00:11]} 41. Rxh6 {[%clk 00:00:22]}
{[%emt 00:00:11]} Rxa2 {[%clk 00:00:17]} {[%emt 00:00:02]} 42. g4+ {[%clk
00:00:24]} {[%emt 00:00:03]} Ke5 {[%clk 00:00:21]} {[%emt 00:00:01]} 43. Rb6
{[%clk 00:00:15]} {[%emt 00:00:13]} Ra3+ {[%clk 00:00:23]} {[%emt 00:00:02]} 44.
Kg2 {[%clk 00:00:19]} {[%emt 00:00:01]} Re3 {[%clk 00:00:26]} 45. Kf2 {[%clk
00:00:11]} {[%emt 00:00:14]} Rd3 {[%clk 00:00:25]} {[%emt 00:00:05]} 46. Ra6
{[%clk 00:00:07]} {[%emt 00:00:10]} Ke4 {[%clk 00:00:17]} {[%emt 00:00:12]} 47.
Kg2 {[%clk 00:00:07]} {[%emt 00:00:06]} Rd4 {[%clk 00:00:13]} {[%emt 00:00:09]}
48. Kg3 {[%clk 00:00:11]} {[%emt 00:00:02]} Rd3+ {[%clk 00:00:17]} 49. Kg2
{[%clk 00:00:15]} Ke5 {[%emt 00:00:16]} 1/2-1/2